Cogmind - Beta 13 X2 @@@ ROGUE MODE // 2024.02.02 @ 16:45:08 Player: Minty Result: Destroyed by Y-64 Sentinel with KE Penetrator Performance ------------- Evolutions (6) 3000 Regions Visited (17) 3400 Robots Destroyed (79) 395 Value Destroyed (3488) 3488 Prototype IDs (32) 640 Alien Tech Used (0) 0 Bonus (1972) 1972 TOTAL SCORE: 12895 Bonus ------- High Alert Combat Kills 377 Follower Combat Kills 195 Entered Garrisons 600 Used RIF Installer 500 Aligned with FarCom 300 Cogmind --------- Core Integrity 0/1150 Matter 8/300 Energy 100/100 System Corruption 21% Temperature Cool (1) Movement Flying (40) Location -4/Factory Parts ------- > --- POWER (1) -------- (None) > --- PROPULSION (5) --- Impulse Thruster > --- UTILITY (9) ------ Advanced Terrain Scanner Relay Coupler [Hunter] (16) > --- WEAPON (4) ------- (None) > --- INVENTORY (5) ---- Neutrino Core Long-range Terrain Scanner Coil Gun Hardcell Cannon Peak State ------------ > --- POWER ------------ Light Antimatter Reactor > --- PROPULSION ------- Improved Treads Improved Treads Improved Treads Biometal Heavy Treads > --- UTILITY ---------- Advanced Heat Sink Advanced Targeting Computer Advanced Targeting Computer Matter Filter Improved Medium Armor Plating Improved Medium Armor Plating Relay Coupler [Swarmer] Relay Coupler [Brawler] Relay Coupler [Duelist] > --- WEAPON ----------- Hardcell Cannon Hardcell Cannon Hardcell Cannon Hardcell Cannon > --- INVENTORY -------- Neutrino Core Light Antimatter Reactor Relay Coupler [Sentry] Relay Coupler [Hunter] Coil Gun [Rating: 93] Favorites ----------- Power Improved Ion Engine Engine Improved Ion Engine Power Core Fission Core Reactor Light Antimatter Reactor Propulsion Improved Flight Unit Treads Improved Treads Leg Aluminum Leg Flight Unit Improved Flight Unit Utility Advanced Targeting Computer Device Advanced Weight Redist. System Storage Medium Storage Unit Processor Advanced Targeting Computer Hackware Relay Coupler [Swarmer] Protection Improved Utility Shielding Weapon Hardcell Cannon Energy Gun High-powered Shock Rifle Energy Cannon Advanced Beam Cannon Ballistic Gun Assault Rifle Ballistic Cannon Hardcell Cannon Launcher Long-range Missile Launcher Special Weapon Remote Datajack Build | -11 -10 -10 -9 -9 -9 -8 -8 -8 -7 -7 -6 -5 -5 -5 -4 -4 -4 ------- Run | Yrd Mat Min Mat Min Exi Min Mat Gar Fac Gar Fac Fac Upp Upp Fac Gar Fac Slots Evolved 12 | . . . 2 . . . 2 . 2 . 2 2 . . 2 . . Power . | . . . . . . . . . . . . . . . . . . Propulsion 3 | . . . 1 . . . 1 . . . . 1 . . . . . Utility 7 | . . . 1 . . . 1 . 1 . 2 1 . . 1 . . Weapon 2 | . . . . . . . . . 1 . . . . . 1 . . Parts Attached 170 | . 12 6 39 . . . 9 1 26 10 10 12 4 . 8 29 4 Power 30 | . 5 1 6 . . . 1 . 5 1 2 5 . . 1 3 . Engine 20 | . 5 1 6 . . . . . 2 1 2 1 . . 1 1 . Core 9 | . . . . . . . 1 . 3 . . 4 . . . 1 . Reactor 1 | . . . . . . . . . . . . . . . . 1 . Propulsion 29 | . 3 1 9 . . . 1 . 4 . 2 . . . 1 7 1 Treads 6 | . . . . . . . . . . . . . . . . 6 . Leg 7 | . . . 6 . . . . . . . . . . . . 1 . Wheel . | . . . . . . . . . . . . . . . . . . Hover . | . . . . . . . . . . . . . . . . . . Flight 16 | . 3 1 3 . . . 1 . 4 . 2 . . . 1 . 1 Utility 54 | . 1 1 12 . . . 3 1 11 4 5 3 . . 3 7 3 Device 24 | . 1 . 8 . . . 1 . 6 2 1 . . . . 4 1 Storage 2 | . . 1 1 . . . . . . . . . . . . . . Processor 8 | . . . 3 . . . . 1 3 . . . . . 1 . . Hackware 13 | . . . . . . . 2 . . 1 3 3 . . 1 1 2 Protection 7 | . . . . . . . . . 2 1 1 . . . 1 2 . Artifact . | . . . . . . . . . . . . . . . . . . Weapon 57 | . 3 3 12 . . . 4 . 6 5 1 4 4 . 3 12 . Energy Gun 16 | . 2 . 2 . . . 2 . 1 2 1 1 3 . 1 1 . Energy Cannon 6 | . . . 2 . . . 1 . . . . . . . . 3 . Ballistic Gun 11 | . 1 2 4 . . . . . 3 . . . . . . 1 . Ballistic Cannon 16 | . . 1 4 . . . 1 . 2 . . 1 . . . 7 . Launcher 2 | . . . . . . . . . . . . 1 . . 1 . . Special Weapon 6 | . . . . . . . . . . 3 . 1 1 . 1 . . Impact Weapon . | . . . . . . . . . . . . . . . . . . Slashing Weapon . | . . . . . . . . . . . . . . . . . . Piercing Weapon . | . . . . . . . . . . . . . . . . . . Special Melee Weapon . | . . . . . . . . . . . . . . . . . . Unidentified Prototypes 7 | . . . 2 . . . 2 . 1 . . 2 . . . . . Corrupted Parts 1 | . . . . . . . . . . . . . . . . 1 . System Corruption 2 | . . . . . . . . . . . . . . . . 2 . Parts Lost 37 | . 2 2 5 . . . 1 2 . . . . . . 11 13 1 Power 5 | . . 1 1 . . . . . . . . . . . 1 2 . Propulsion 11 | . 1 1 3 . . . . . . . . . . . 4 2 . Utility 13 | . 1 . . . . . . 2 . . . . . . 2 7 1 Weapon 8 | . . . 1 . . . 1 . . . . . . . 4 2 . Highest Loss Streak 9 | . 2 2 3 . . . 1 2 . . . . . . 9 8 1 To Critical Strikes . | . . . . . . . . . . . . . . . . . . Average Slot Usage (%) 77 | . 78 46 91 100 100 100 69 70 75 93 90 87 94 94 72 69 17 Engine 4 | . 14 10 10 11 11 11 5 . 2 3 6 1 . . . . . Core 2 | . . . . . . . 3 9 4 3 . 4 5 5 4 . . Treads 1 | . . . . . . . . . . . . . . . . 9 . Leg 4 | . 7 . 19 . . . . . . . . . . . . . . Flight 12 | . 19 21 8 33 33 33 9 9 15 30 25 23 23 23 18 . 4 Device 10 | . 2 . 16 11 11 11 8 7 8 11 13 11 11 11 9 9 4 Storage 2 | . 5 3 4 11 11 11 9 9 4 . . . . . . . . Processor 7 | . . . 10 11 11 11 6 . 7 10 6 5 5 5 6 9 . Hackware 8 | . . . . . . . 10 17 4 1 10 16 23 23 15 16 8 Protection 4 | . . . . . . . . . 6 13 13 7 5 5 4 4 . Energy Gun 4 | . 9 3 6 . . . 1 9 5 6 5 4 6 11 5 1 . Energy Cannon 1 | . . . . 11 11 11 8 9 1 . . . . . . 1 . Ballistic Gun 3 | . 18 7 6 11 11 11 3 . 8 . . . . . . . . Ballistic Cannon 4 | . . . 6 . . . 4 . 1 7 . . . . . 9 . Naked Turns 20 | . . . . . . . . . . . . . . . . 14 6 Heaviest Build 70 | 13 13 8 28 24 24 24 28 25 40 30 29 35 29 27 30 70 1 Greatest Support 144 | 20 20 8 30 24 24 24 59 50 50 29 30 30 30 30 30 144 7 Greatest Overweight (x) 8 | . 3 . 4 . . . . . . 1 . 1 . . . 8 . Average Overweight (x) . | . . . . . . . . . . . . . . . . . . Largest Inventory Capacity 10 | . 8 8 10 10 10 10 10 10 10 5 5 5 5 5 5 5 5 Average Capacity 6 | . 6 5 7 10 10 10 10 10 8 5 5 5 5 5 5 5 5 Most Carried 10 | . 8 7 10 10 10 10 10 10 10 5 5 5 5 5 5 5 5 Average Carried 5 | . 5 4 6 10 9 10 9 9 7 4 4 4 4 5 4 4 4 Final Capacity 10 | 8 5 5 10 10 10 10 10 10 5 5 5 5 5 5 5 5 5 Final Carried 10 | 6 5 2 10 10 10 10 10 9 5 5 3 5 5 5 4 5 4 Class Distribution -------------------- 32% | Mutant 12% | Bothacker-Sprinter 11% | Sprinter 9% | Scavenger-Mutant 9% | Scavenger-Gunner 6% | Scout 5% | Gunner 5% | Hacker-Mutant Dominant Class ---------------- Mutant | -10/Materials Mutant | -10/Mines Mutant | -9/Materials Mutant | -9/Mines Mutant | -9/Exiles Mutant | -8/Mines Mutant | -8/Materials Hacker-Mutant | -8/Garrison Scavenger-Scout | -7/Factory Sprinter | -7/Garrison Bothacker-Sprinter | -6/Factory Bothacker-Sprinter | -5/Factory Bothacker-Sprinter | -5/Upper Caves Bothacker-Sprinter | -5/Upper Caves Sprinter | -4/Factory Scavenger-Gunner | -4/Garrison Scout | -4/Factory Resources | -11 -10 -10 -9 -9 -9 -8 -8 -8 -7 -7 -6 -5 -5 -5 -4 -4 -4 ----------- Run | Yrd Mat Min Mat Min Exi Min Mat Gar Fac Gar Fac Fac Upp Upp Fac Gar Fac Matter Collected 3218 | 194 225 69 761 . . 55 129 50 295 167 114 83 123 . 251 702 . Remotely . | . . . . . . . . . . . . . . . . . . Salvage Created 2660 | . 246 . 582 . . 57 122 . 460 84 . 24 . . 449 636 . Parts 155 | . 26 . 30 . . 6 10 . 25 4 . 4 . . 21 29 . Haulers Intercepted 3 | . . . 1 . . . 2 . . . . . . . . . . Recyclers Shooed 3 | . 2 . . . . . . . . . . . . . 1 . . Parts Field Recycled . | . . . . . . . . . . . . . . . . . . Retrieved Matter . | . . . . . . . . . . . . . . . . . . Parts Self-Destructed . | . . . . . . . . . . . . . . . . . . Prevented . | . . . . . . . . . . . . . . . . . . Kills | -11 -10 -10 -9 -9 -9 -8 -8 -8 -7 -7 -6 -5 -5 -5 -4 -4 -4 ------- Run | Yrd Mat Min Mat Min Exi Min Mat Gar Fac Gar Fac Fac Upp Upp Fac Gar Fac Combat Hostiles Destroyed 63 | . 7 . 16 . . 3 1 . 11 2 . 1 . . 9 13 . Guns 29 | . 7 . 11 . . 1 . . 9 . . . . . 1 . . Cannons 25 | . . . 5 . . 2 1 . 2 2 . . . . . 13 . AOE 9 | . . . . . . . . . . . . 1 . . 8 . . Classes Destroyed 14 | . 4 . 4 . . . 1 . 1 2 . . . . 1 1 . Worker 1 | . . . . . . . . . . . . . . . 1 . . Builder 5 | . 1 . . . . . . . 1 . . 1 . . 2 . . Tunneler 1 | . 1 . . . . . . . . . . . . . . . . Hauler 3 | . . . 1 . . . 2 . . . . . . . . . . Recycler 2 | . . . 1 . . . . . . . . . . . 1 . . Operator 3 | . . . . . . . 1 . . . . . . . 2 . . Watcher 1 | . . . 1 . . . . . . . . . . . . . . Swarmer 18 | . 3 . 4 . . 3 . . 3 . . . . . 5 . . Grunt 29 | . 4 . 8 . . . 1 . 6 . . . . . 4 6 . Brawler 1 | . . . . . . . . . . 1 . . . . . . . Duelist 1 | . . . . . . . . . . 1 . . . . . . . Sentry 10 | . . . 4 . . . . . 1 . . 1 . . . 4 . Hunter 3 | . . . . . . . . . . . . . . . . 3 . Programmer 1 | . . . . . . . . . 1 . . . . . . . . Best Kill Streak 9 | . 4 . 6 . . 3 2 . 5 2 . 2 . . 9 4 . Combat Bots Only 5 | . 3 . 5 . . 3 1 . 5 2 . 1 . . 5 4 . Max Kills in Single Turn 3 | . 1 . 1 . . 1 1 . 1 1 . 1 . . 3 1 . Gunslinging . | . . . . . . . . . . . . . . . . . . Exploded 3 | . . . . . . . . . . . . 1 . . 3 . . Melee . | . . . . . . . . . . . . . . . . . . Uniques/NPCs Destroyed . | . . . . . . . . . . . . . . . . . . Combat | -11 -10 -10 -9 -9 -9 -8 -8 -8 -7 -7 -6 -5 -5 -5 -4 -4 -4 -------- Run | Yrd Mat Min Mat Min Exi Min Mat Gar Fac Gar Fac Fac Upp Upp Fac Gar Fac Hostile Shots Fired 744 | . 58 10 95 . . 18 4 94 107 10 26 7 4 . 99 209 3 Missed 249 | . 25 5 22 . . 8 2 40 41 2 16 3 2 . 38 45 . Damage Taken 8073 | . 378 180 831 . . 84 35 740 768 83 166 94 35 . 1212 3385 82 Core 1825 | . 125 76 165 . . 33 . 88 65 43 19 44 . . 401 716 50 Absorbed by Shields 183 | . . . . . . . . 31 152 . . . . . . . . Reduced by Siege Mode 144 | . . . . . . . . . . . . . . . . 144 . Redirected to Shielding 143 | . . . . . . . . . . . 7 18 13 . 105 . . Regen/Repaired (Parts) 124 | . . . . . . . . . 37 . . . . . 87 . . Core Remaining (%) 75 | 100 . 19 . . . 50 . 84 . 84 97 . . 95 . . . Volleys Fired 295 | . 32 . 90 . . 5 10 9 34 9 17 6 3 . 33 47 . Largest 4 | . 2 . 2 . . 2 2 2 3 2 1 2 1 . 2 4 . Hottest 260 | . 60 . 104 . . 91 107 123 123 117 60 103 5 . 148 260 . Shots Fired 574 | . 62 . 174 . . 10 20 18 82 17 17 9 3 . 44 118 . Gun 329 | . 62 . 124 . . 5 3 9 72 8 1 3 . . 26 16 . Cannon 201 | . . . 50 . . 5 17 9 10 8 . . . . . 102 . Launcher 17 | . . . . . . . . . . . . 5 . . 12 . . Special 27 | . . . . . . . . . . 1 16 1 3 . 6 . . Kinetic 342 | . 45 . 126 . . 5 9 . 49 8 . . . . . 100 . Thermal 170 | . 17 . 48 . . 5 10 18 33 8 . . . . 21 10 . Explosive 17 | . . . . . . . . . . . . 5 . . 12 . . Electromagnetic 18 | . . . . . . . 1 . . . 1 3 . . 5 8 . Robot Hit Streak 14 | . 12 . 9 . . 2 5 7 7 8 14 7 5 . 7 13 . Robot Miss Streak 10 | . 3 . 10 . . 4 2 3 9 1 1 1 1 . 3 2 . Penetration Max . | . . . . . . . . . . . . . . . . . . Secondary Targets 2 | . . . 1 . . . . . 1 . . . . . . . . Max Gunslinging Chain 1 | . . . 1 . . . . . 1 . . . . . . . . Shots Hit Robots 342 | . 37 . 95 . . 3 13 11 48 11 14 8 2 . 32 68 . Core Hits 174 | . 15 . 44 . . 3 5 2 31 5 . 5 . . 31 33 . Critical Kills 1 | . . . . . . . . . . . . . . . 1 . . Critical Parts Destroyed 4 | . . . 1 . . . . . . . . . . . 3 . . Critical Strikes 17 | . . . 2 . . . . . 1 2 . . . . 5 7 . Burn 2 | . . . . . . . . . 1 1 . . . . . . . Destroy 5 | . . . 1 . . . . . . . . . . . 4 . . Blast 9 | . . . 1 . . . . . . 1 . . . . . 7 . Corrupt 1 | . . . . . . . . . . . . . . . 1 . . Melee Attacks . | . . . . . . . . . . . . . . . . . . Impact . | . . . . . . . . . . . . . . . . . . Slashing . | . . . . . . . . . . . . . . . . . . Piercing . | . . . . . . . . . . . . . . . . . . Sneak Attacks . | . . . . . . . . . . . . . . . . . . Combat Hostiles . | . . . . . . . . . . . . . . . . . . Follow-up Attacks . | . . . . . . . . . . . . . . . . . . Damage Inflicted 8690 | . 547 . 1366 . . 68 283 322 805 232 27 307 . . 2229 2493 11 Guns 3298 | . 518 . 998 . . 26 35 116 744 75 . 39 . . 500 247 . Cannons 3178 | . . . 363 . . 42 248 118 61 157 . . . . . 2189 . Explosions 1994 | . . . . . . . . . . . . 268 . . 1726 . . Melee . | . . . . . . . . . . . . . . . . . . Ramming 220 | . 29 . 5 . . . . 88 . . 27 . . . 3 57 11 Kinetic 4359 | . 380 . 1003 . . 26 106 . 515 157 . . . . . 2172 . Thermal 1896 | . 138 . 358 . . 42 165 234 290 75 . . . . 405 189 . Explosive 1994 | . . . . . . . . . . . . 268 . . 1726 . . Electromagnetic 221 | . . . . . . . 12 . . . . 39 . . 95 75 . Impact . | . . . . . . . . . . . . . . . . . . Slashing . | . . . . . . . . . . . . . . . . . . Piercing . | . . . . . . . . . . . . . . . . . . Highest Corruption 21 | . 5 5 . . . . . 1 2 2 . . . . 5 18 21 Average Corruption 11 | . 5 5 . . . . . 1 1 2 . . . . 2 15 19 Corruption Purged . | . . . . . . . . . . . . . . . . . . Corruption Blocked . | . . . . . . . . . . . . . . . . . . Effects 55 | . 2 1 . . . . . . 3 1 . . . . . 37 11 Message Errors 9 | . 1 . . . . . . . 1 . . . . . . 6 1 Matter Fused 14 | . 1 1 . . . . . . 2 . . . . . . 8 2 Heat Flow Errors 5 | . . . . . . . . . . 1 . . . . . 2 2 Energy Discharges 8 | . . . . . . . . . . . . . . . . 6 2 Data Loss (minor) 12 | . . . . . . . . . . . . . . . . 9 3 Misfires 4 | . . . . . . . . . . . . . . . . 4 . Misdirections 2 | . . . . . . . . . . . . . . . . 1 1 Weapon Failures 1 | . . . . . . . . . . . . . . . . 1 . Overload Shots . | . . . . . . . . . . . . . . . . . . Overflow Damage 50 | . . . 7 . . . . . . 10 . . . . 2 31 . Projectiles 48 | . . . 7 . . . . . . 10 . . . . . 31 . Explosions 2 | . . . . . . . . . . . . . . . 2 . . Melee . | . . . . . . . . . . . . . . . . . . Knockbacks 21 | . . . 2 . . . 1 . . 3 . . . . . 15 . Impact . | . . . . . . . . . . . . . . . . . . Kinetic 21 | . . . 2 . . . 1 . . 3 . . . . . 15 . Secondary . | . . . . . . . . . . . . . . . . . . Self-Inflicted Damage 246 | . 14 . . . . . . 88 . . 13 . . . 71 55 5 Shots 1 | . . . . . . . . . . . . . . . 1 . . Rammed 7 | . 1 . . . . . . . . . 2 . . . 1 2 1 Targets Rammed 10 | . 1 . 3 . . . . . . . 2 . . . 1 2 1 Kicked 3 | . . . 3 . . . . . . . . . . . . . . Crushed . | . . . . . . . . . . . . . . . . . . Highest Temperature 773 | . 88 . 435 . . 168 264 397 444 234 . . . . 57 773 242 Average Temperature 133 | . 36 . 130 . . 83 97 171 159 55 . . . . 18 190 113 Received Heat Transfer 1378 | . 129 . 327 . . . 36 145 227 12 42 9 . . 226 216 9 Effects 27 | . . . 2 . . . . 5 6 . . . . . . 14 . Shutdowns 1 | . . . . . . . . 1 . . . . . . . . . Energy Bleed 3 | . . . 1 . . . . 1 . . . . . . . 1 . Interference 10 | . . . . . . . . 3 4 . . . . . . 3 . Matter Decay 4 | . . . 1 . . . . . 1 . . . . . . 2 . Short Circuit 3 | . . . . . . . . . 1 . . . . . . 2 . Damage (minor) 1 | . . . . . . . . . . . . . . . . 1 . Damage (major) 4 | . . . . . . . . . . . . . . . . 4 . Damage (core) 1 | . . . . . . . . . . . . . . . . 1 . Siege Activations 1 | . . . . . . . . . . . . . . . . 1 . Total Turns 19 | . . . . . . . . . . . . . . . . 19 . Longest Duration 19 | . . . . . . . . . . . . . . . . 19 . Robots Corrupted . | . . . . . . . . . . . . . . . . . . Combat Hostiles . | . . . . . . . . . . . . . . . . . . Parts Fried 3 | . . . . . . . . . . . . . . . 3 . . Impact Corruptions . | . . . . . . . . . . . . . . . . . . Robots Melted . | . . . . . . . . . . . . . . . . . . Combat Hostiles . | . . . . . . . . . . . . . . . . . . Parts Melted 2 | . . . . . . . . . 1 . . . . . 1 . . Heat Transferred 3180 | . 300 . 515 . . 74 259 407 629 222 . . . . 555 219 . Parts Sabotaged . | . . . . . . . . . . . . . . . . . . Parts Stolen . | . . . . . . . . . . . . . . . . . . Parts Stripped . | . . . . . . . . . . . . . . . . . . Power Chain Reactions . | . . . . . . . . . . . . . . . . . . Missiles Intercepted . | . . . . . . . . . . . . . . . . . . Alert | -11 -10 -10 -9 -9 -9 -8 -8 -8 -7 -7 -6 -5 -5 -5 -4 -4 -4 ------- Run | Yrd Mat Min Mat Min Exi Min Mat Gar Fac Gar Fac Fac Upp Upp Fac Gar Fac Peak Influence 872 | . 181 70 309 102 . 75 117 198 406 546 505 421 . . 652 872 528 Initial 436 | . . 70 19 102 . . 29 69 95 175 275 237 . . 163 424 436 Average 319 | . 82 57 108 102 . 56 62 88 230 369 375 311 . . 385 640 485 Maximum Alert Level 3 | . . . 1 . . . . . 2 2 2 2 . . 2 3 2 Low Security (%) 39 | . 100 100 85 100 . 100 100 100 37 20 . . . . 8 . . Level 1 22 | . . . 14 . . . . . 48 30 67 74 . . 66 . . Level 2 28 | . . . . . . . . . 13 49 32 25 . . 24 61 100 Level 3 8 | . . . . . . . . . . . . . . . . 38 . Level 4 . | . . . . . . . . . . . . . . . . . . Level 5 . | . . . . . . . . . . . . . . . . . . High Security . | . . . . . . . . . . . . . . . . . . Max Security . | . . . . . . . . . . . . . . . . . . Squads Dispatched 32 | . 2 . 3 . . . . . 7 . 6 3 . . 5 . 6 Investigation 19 | . 2 . 2 . . . . . 2 . 5 2 . . 1 . 5 Extermination 3 | . . . . . . . . . 1 . 1 . . . 1 . . Reinforcement 5 | . . . 1 . . . . . 1 . . 1 . . 1 . 1 Assault . | . . . . . . . . . . . . . . . . . . Garrison 5 | . . . . . . . . . 3 . . . . . 2 . . Intercept . | . . . . . . . . . . . . . . . . . . Searches Triggered . | . . . . . . . . . . . . . . . . . . Construction Impeded 3 | . . . . . . . . . 1 . . 1 . . 1 . . Haulers Reinforced . | . . . . . . . . . . . . . . . . . . Active Scanning Responses . | . . . . . . . . . . . . . . . . . . Cargo Convoy Interrupts . | . . . . . . . . . . . . . . . . . . Stealth | -11 -10 -10 -9 -9 -9 -8 -8 -8 -7 -7 -6 -5 -5 -5 -4 -4 -4 --------- Run | Yrd Mat Min Mat Min Exi Min Mat Gar Fac Gar Fac Fac Upp Upp Fac Gar Fac Distress Signals 9 | . 2 1 1 . . . . . . . 3 . . . . 1 1 Communications Jammed . | . . . . . . . . . . . . . . . . . . Distress Signals . | . . . . . . . . . . . . . . . . . . Times Spotted 189 | . 13 18 26 . . 4 3 21 14 4 16 11 3 . 29 20 7 Peak Tracking Total 16 | . 4 16 5 . . 4 1 16 4 4 7 6 6 . 14 6 3 Tactical Retreats 14 | . . 1 1 . . . . 2 1 . 1 2 1 . . 4 1 Traps | -11 -10 -10 -9 -9 -9 -8 -8 -8 -7 -7 -6 -5 -5 -5 -4 -4 -4 ------- Run | Yrd Mat Min Mat Min Exi Min Mat Gar Fac Gar Fac Fac Upp Upp Fac Gar Fac Traps Triggered 11 | . . . 1 . . . . 2 . 3 . . . . . 4 1 Indirectly . | . . . . . . . . . . . . . . . . . . Trap Hack Attempts . | . . . . . . . . . . . . . . . . . . Triggered . | . . . . . . . . . . . . . . . . . . Disarmed . | . . . . . . . . . . . . . . . . . . Reprogrammed . | . . . . . . . . . . . . . . . . . . Reused . | . . . . . . . . . . . . . . . . . . Traps Extracted . | . . . . . . . . . . . . . . . . . . Installed 2 | . . 2 . . . . . . . . . . . . . . . Triggered . | . . . . . . . . . . . . . . . . . . Most Traps Carried 1 | . . 1 . . . . . . . . . . . . . . . Machines | -11 -10 -10 -9 -9 -9 -8 -8 -8 -7 -7 -6 -5 -5 -5 -4 -4 -4 ---------- Run | Yrd Mat Min Mat Min Exi Min Mat Gar Fac Gar Fac Fac Upp Upp Fac Gar Fac Machines Disabled 11 | . . . 1 . . . 1 . . 2 . . . . 4 3 . Max in Single Turn 1 | . . . 1 . . . 1 . . 1 . . . . 1 1 . Garrison Relay 3 | . . . . . . . . . . 2 . . . . . 1 . Machines Repaired . | . . . . . . . . . . . . . . . . . . Machines Dismantled . | . . . . . . . . . . . . . . . . . . Machines Sabotaged . | . . . . . . . . . . . . . . . . . . Overloaded Fab Kills . | . . . . . . . . . . . . . . . . . . Hacking | -11 -10 -10 -9 -9 -9 -8 -8 -8 -7 -7 -6 -5 -5 -5 -4 -4 -4 --------- Run | Yrd Mat Min Mat Min Exi Min Mat Gar Fac Gar Fac Fac Upp Upp Fac Gar Fac Machines Accessed 46 | . 2 . 5 . 1 . 3 . 8 3 9 2 1 . 5 1 6 Terminals 25 | . 2 . 4 . . . 2 . 3 3 5 . . . 2 1 3 Fabricators 4 | . . . . . . . . . . . 2 1 . . . . 1 Repair Stations 2 | . . . . . . . . . 1 . . . . . 1 . . Recycling Units 6 | . . . . . . . . . 2 . 1 . . . 1 . 2 Scanalyzers 3 | . . . 1 . . . . . 1 . 1 . . . . . . Garrison Access 4 | . . . . . . . 1 . 1 . . 1 . . 1 . . Total Hacks 143 | . 6 . 19 . 1 . 8 . 22 9 31 4 1 . 21 4 17 Successful 73 | . 3 . 11 . 1 . 3 . 16 1 17 2 1 . 11 1 6 Failed 70 | . 3 . 8 . . . 5 . 6 8 14 2 . . 10 3 11 Catastrophic 24 | . 2 . 1 . . . 1 . 1 5 6 1 . . 1 1 5 Database Lockouts . | . . . . . . . . . . . . . . . . . . Manual 62 | . 4 . 12 . 1 . 7 . 8 1 13 3 . . 3 1 9 Terminals 82 | . 6 . 16 . . . 7 . 9 9 12 . . . 11 4 8 Fabricators 10 | . . . . . . . . . . . 6 2 . . . . 2 Repair Stations 6 | . . . . . . . . . 2 . . . . . 4 . . Recycling Units 26 | . . . . . . . . . 4 . 10 . . . 5 . 7 Scanalyzers 11 | . . . 3 . . . . . 5 . 3 . . . . . . Garrison Access 6 | . . . . . . . 1 . 2 . . 2 . . 1 . . Terminal Hacks 13 | . . . 5 . 1 . . . 1 1 . . 1 . 3 1 . Prototype ID Bank 1 | . . . . . . . . . 1 . . . . . . . . Open Door 1 | . . . . . . . . . . . . . 1 . . . . Emergency Access Points 1 | . . . . . . . . . . . . . . . . 1 . Alert Level 2 | . . . 1 . . . . . . . . . . . 1 . . Unreport Threat 1 | . . . 1 . . . . . . . . . . . . . . Transport Status 1 | . . . 1 . . . . . . . . . . . . . . Hauler Manifests 1 | . . . 1 . . . . . . . . . . . . . . Registered Components 1 | . . . . . . . . . . . . . . . 1 . . Registered Prototypes 2 | . . . 1 . . . . . . . . . . . 1 . . Security Stations 1 | . . . . . . . . . . 1 . . . . . . . Derelict Proto ID Bank 1 | . . . . . 1 . . . . . . . . . . . . Fabricator Hacks 4 | . . . . . . . . . . . 3 . . . . . 1 Network Status 1 | . . . . . . . . . . . . . . . . . 1 Load Schematic 2 | . . . . . . . . . . . 2 . . . . . . Build 1 | . . . . . . . . . . . 1 . . . . . . Repair Station Hacks 6 | . . . . . . . . . 2 . . . . . 4 . . Scan Component 3 | . . . . . . . . . 1 . . . . . 2 . . Repair 3 | . . . . . . . . . 1 . . . . . 2 . . Recycling Unit Hacks 19 | . . . . . . . . . 3 . 10 . . . 1 . 5 Recycle Component 4 | . . . . . . . . . . . 2 . . . . . 2 Process 7 | . . . . . . . . . 1 . 4 . . . . . 2 Report Inventory 3 | . . . . . . . . . 1 . 1 . . . 1 . . Retrieve Matter 5 | . . . . . . . . . 1 . 3 . . . . . 1 Scanalyzer 7 | . . . 2 . . . . . 5 . . . . . . . . Insert Component 3 | . . . 1 . . . . . 2 . . . . . . . . Analyze 4 | . . . 1 . . . . . 3 . . . . . . . . Garrison Access Hacks 5 | . . . . . . . 1 . 2 . . 1 . . 1 . . Unlock Access 3 | . . . . . . . 1 . 1 . . . . . 1 . . Coupler Status 2 | . . . . . . . . . 1 . . 1 . . . . . Unauthorized Hacks 19 | . 3 . 4 . . . 2 . 3 . 4 1 . . 2 . . Terminals 17 | . 3 . 4 . . . 2 . 3 . 3 . . . 2 . . Assimilate 1 | . . . . . . . . . 1 . . . . . . . . Botnet 14 | . 2 . 4 . . . 2 . 2 . 2 . . . 2 . . Disrupt 2 | . 1 . . . . . . . . . 1 . . . . . . Fabricators . | . . . . . . . . . . . . . . . . . . Repair Stations . | . . . . . . . . . . . . . . . . . . Recycling Units . | . . . . . . . . . . . . . . . . . . Scanalyzers 1 | . . . . . . . . . . . 1 . . . . . . Extract 1 | . . . . . . . . . . . 1 . . . . . . Garrison Access 1 | . . . . . . . . . . . . 1 . . . . . Eject 1 | . . . . . . . . . . . . 1 . . . . . Data Cores Recovered 2 | . . . . . . . 1 . . . . . . . 1 . . Used . | . . . . . . . . . . . . . . . . . . Hacking Detections 38 | . 2 . 5 . . . 2 . 7 3 8 1 . . 3 1 6 Full Trace Events 19 | . 2 . 1 . . . . . 2 3 4 1 . . 1 . 5 Feedback Events 2 | . . . . . . . . . . . . . . . . . 2 Corruption 2 | . . . . . . . . . . . . . . . . . 2 Feedback Blocked . | . . . . . . . . . . . . . . . . . . Robot Schematics Acquired . | . . . . . . . . . . . . . . . . . . Robots Built . | . . . . . . . . . . . . . . . . . . Authchips . | . . . . . . . . . . . . . . . . . . Time . | . . . . . . . . . . . . . . . . . . Total Robot Build Rating . | . . . . . . . . . . . . . . . . . . Part Schematics Acquired 15 | . . . 1 . . . . . 2 . 12 . . . . . . Parts Built . | . . . . . . . . . . . . . . . . . . Authchips . | . . . . . . . . . . . . . . . . . . Time 84 | . . . . . . . . . . . 84 . . . . . . Total Part Build Rating . | . . . . . . . . . . . . . . . . . . Parts Repaired 3 | . . . . . . . . . 1 . . . . . 2 . . Time 133 | . . . . . . . . . 44 . . . . . 89 . . Parts Recycled 4 | . . . . . . . . . . . 2 . . . . . 2 Recycled Matter 246 | . . . . . . . . . 19 . 173 . . . . . 54 Retrieved Matter 202 | . . . . . . . . . 19 . 173 . . . . . 10 Retrieved Components . | . . . . . . . . . . . . . . . . . . Parts Scanalyzed 3 | . . . 1 . . . . . 2 . . . . . . . . Part Schematics Acquired 3 | . . . 1 . . . . . 2 . . . . . . . . Parts Damaged 1 | . . . . . . . . . 1 . . . . . . . . Bothacking | -11 -10 -10 -9 -9 -9 -8 -8 -8 -7 -7 -6 -5 -5 -5 -4 -4 -4 ------------ Run | Yrd Mat Min Mat Min Exi Min Mat Gar Fac Gar Fac Fac Upp Upp Fac Gar Fac Used RIF Installer 1 | . . . . . . . . 1 . . . . . . . . . Robots Hacked 15 | . . . . . . . . . . 1 9 1 2 . 2 . . Non-combat 10 | . . . . . . . . . . . 6 . 2 . 2 . . Combat 5 | . . . . . . . . . . 1 3 1 . . . . . Robot Hacks Applied 22 | . . . . . . . . . . 1 13 1 2 . 5 . . parse_system 3 | . . . . . . . . . . . 1 . 2 . . . . generate_anomaly 1 | . . . . . . . . . . . 1 . . . . . . generate_echo 2 | . . . . . . . . . . . 1 . . . 1 . . ignore_repairs 1 | . . . . . . . . . . . 1 . . . . . . map_walls 1 | . . . . . . . . . . . 1 . . . . . . ignore_parts 1 | . . . . . . . . . . . . . . . 1 . . locate_traps 1 | . . . . . . . . . . . 1 . . . . . . block_reporting 1 | . . . . . . . . . . . 1 . . . . . . recall_investigation 1 | . . . . . . . . . . . 1 . . . . . . map_route 1 | . . . . . . . . . . . . . . . 1 . . mark_security 1 | . . . . . . . . . . . . . . . 1 . . relay_feed 1 | . . . . . . . . . . . . . . . 1 . . link_fov 1 | . . . . . . . . . . . 1 . . . . . . amplify_resonance 2 | . . . . . . . . . . . 2 . . . . . . overwrite_iff 1 | . . . . . . . . . . . . 1 . . . . . formatsys_high 3 | . . . . . . . . . . 1 2 . . . . . . Relay Couplers Released 16 | . . . . . . . . . . 9 . 4 . . . 3 . Ejected 4 | . . . . . . . . . . . . 4 . . . . . Machine Destruction 12 | . . . . . . . . . . 9 . . . . . 3 . Attached 10 | . . . . . . . . . . 1 3 2 . . 1 1 2 Fabnet Peak Effective % . | . . . . . . . . . . . . . . . . . . Robots Rewired . | . . . . . . . . . . . . . . . . . . Allies Hacked . | . . . . . . . . . . . . . . . . . . Hacks Repelled . | . . . . . . . . . . . . . . . . . . Allies | -11 -10 -10 -9 -9 -9 -8 -8 -8 -7 -7 -6 -5 -5 -5 -4 -4 -4 -------- Run | Yrd Mat Min Mat Min Exi Min Mat Gar Fac Gar Fac Fac Upp Upp Fac Gar Fac Total Allies 10 | . . . . 1 . . . 2 1 3 2 1 . . . . . Largest Group 2 | . . . . 1 . . . 2 1 2 2 1 . . . . . Highest-Rated Group 78 | . . . . 31 . . . 78 26 57 64 30 . . . . . Highest-Rated Ally 41 | . . . . 31 . . . 39 26 32 41 30 . . . . . Total Orders . | . . . . . . . . . . . . . . . . . . Ally Attacks 42 | . . . . . . . . 15 . 14 12 1 . . . . . Total Damage 1206 | . . . . . . . . 274 . 463 469 . . . . . . Kills 11 | . . . . . . . . 3 . 3 5 . . . . . . Allies Corrupted . | . . . . . . . . . . . . . . . . . . Allies Melted . | . . . . . . . . . . . . . . . . . . Intel | -11 -10 -10 -9 -9 -9 -8 -8 -8 -7 -7 -6 -5 -5 -5 -4 -4 -4 ------- Run | Yrd Mat Min Mat Min Exi Min Mat Gar Fac Gar Fac Fac Upp Upp Fac Gar Fac Robot Analysis Total . | . . . . . . . . . . . . . . . . . . Derelict Logs Recovered 2 | . . . . . . . . . . . . . 2 . . . . Drone Launches . | . . . . . . . . . . . . . . . . . . Drone Recoveries . | . . . . . . . . . . . . . . . . . . Exploration | -11 -10 -10 -9 -9 -9 -8 -8 -8 -7 -7 -6 -5 -5 -5 -4 -4 -4 ------------- Run | Yrd Mat Min Mat Min Exi Min Mat Gar Fac Gar Fac Fac Upp Upp Fac Gar Fac Turns Passed 4259 | . 196 33 844 35 82 34 124 199 460 251 269 151 164 8 293 885 231 Spaces Moved 5236 | 1 123 49 652 103 213 55 139 263 635 309 652 265 475 26 345 423 508 Core 324 | . . . 2 . . . . . . . . . . . 18 190 114 Treads 233 | . . . . . . . . . . . . . . . . 233 . Legs 310 | 1 22 . 287 . . . . . . . . . . . . . . Wheels . | . . . . . . . . . . . . . . . . . . Hover . | . . . . . . . . . . . . . . . . . . Flight 4369 | . 101 49 363 103 213 55 139 263 635 309 652 265 475 26 327 . 394 Fastest Speed 31 | 120 37 37 34 34 34 34 50 50 31 31 31 31 31 31 31 50 40 Average Speed 51 | 120 61 38 74 34 34 34 50 50 41 38 31 32 31 31 32 144 42 Slowest Speed 450 | 120 280 40 320 34 34 34 50 50 50 101 31 103 31 31 50 450 50 Overloaded Moves . | . . . . . . . . . . . . . . . . . . Propulsion Burnouts . | . . . . . . . . . . . . . . . . . . Robots Hopped 75 | . . 1 13 . . . . 15 6 . 23 . . 1 13 . 3 Cave-ins Triggered . | . . . . . . . . . . . . . . . . . . Exploration Rate (%) 25 | 2 24 20 44 32 42 14 16 36 13 35 17 8 67 8 11 55 19 Regions Visited 17 Branch Regions 6 Pre-discovered Areas . | . . . . . . . . . . . . . . . . . . Known Exits Taken 3 | . . . . . . . 1 . 1 . . . . . 1 . . Unknown Exits Taken 11 | 1 1 1 1 1 1 1 . . . . 1 1 1 1 . . . Scrap Searched 5 | . . 1 . 1 . . . . . . . . 3 . . . . Spaces Dug 1 | . . . 1 . . . . . . . . . . . . . . Terrain Destroyed 145 | . . . 2 . . . 1 . . . . 17 . . 101 24 . Melee . | . . . . . . . . . . . . . . . . . . Projectile 27 | . . . 2 . . . 1 . . . . . . . . 24 . AOE 118 | . . . . . . . . . . . . 17 . . 101 . . Terrain Rammed 8 | . . . . . . . . 3 . . . . . . . 5 . Walls Destroyed 1 | . . . . . . . . 1 . . . . . . . . . Machines Disabled . | . . . . . . . . . . . . . . . . . . Actions | -11 -10 -10 -9 -9 -9 -8 -8 -8 -7 -7 -6 -5 -5 -5 -4 -4 -4 --------- Run | Yrd Mat Min Mat Min Exi Min Mat Gar Fac Gar Fac Fac Upp Upp Fac Gar Fac Total 6216 | . 182 64 823 102 225 59 175 296 773 431 686 319 491 24 469 575 522 Wait 280 | . . . 13 . . . . 34 30 24 19 23 2 . 92 38 5 Move 5093 | . 122 46 629 102 212 54 139 242 622 308 611 264 474 23 321 422 502 Hop 53 | . . 1 9 . . . . 5 6 . 17 . . 1 11 . 3 Pick Up 73 | . 3 1 11 . 5 . 5 . 18 11 2 4 2 . . 6 5 Fast Attach 100 | . 4 2 25 . . . 7 . 15 3 6 7 3 . 4 22 2 Attach 41 | . 1 4 3 . . . 2 1 7 4 3 4 . . 4 6 2 Detach 31 | . 2 3 5 . . . 2 . 6 3 2 4 . . 3 1 . Swap 30 | . 7 . 11 . . . 1 . 4 3 1 1 1 . . 1 . Drop 127 | . 10 5 24 . 8 . 9 . 31 12 5 6 6 . . 9 2 Fire 295 | . 32 . 90 . . 5 10 9 34 9 17 6 3 . 33 47 . Melee . | . . . . . . . . . . . . . . . . . . Ram 14 | . 1 . . . . . . 3 . . 2 . . . 1 6 1 Kick 3 | . . . 3 . . . . . . . . . . . . . . Crush 1 | . . . . . . . . . . . . . . . . 1 . Escape Stasis 71 | . . . . . . . . 2 . 54 . . . . . 15 . Rewire 2 | . . . . . . . . . . . 1 . . . . 1 . Trap 2 | . . 2 . . . . . . . . . . . . . . . Miscellaneous . | . . . . . . . . . . . . . . . . . . Route ------- -11/Scrapyard -10/Materials -10/Mines -9/Materials (discovered 2 exits: *Mat / [*Min]) -9/Mines -9/Exiles -8/Mines -8/Materials -8/Garrison -7/Factory -7/Garrison -6/Factory (discovered 2 exits: *Fac x2) -5/Factory -5/Upper Caves -5/Upper Caves -4/Factory -4/Garrison -4/Factory History --------- Turn | Location | Event 1 | -11/Scrapyard | Discovered new exit (range 0) 1 | -11/Scrapyard | Entered Materials 152 | -10/Materials | Discovered new exit (range 10) 197 | -10/Materials | Entered Mines 198 | -10/Mines | Assembled infested the area 202 | -10/Mines | Found a hidden stash of uninstalled traps 203 | -10/Mines | Assisted by a Guerilla fighting off Assembled 210 | -10/Mines | Core integrity fell below 50% 213 | -10/Mines | Core integrity fell below 20% 220 | -10/Mines | Discovered new exit (range 5) 230 | -10/Mines | Entered Materials 230 | -9/Materials | Evolved 2 slots: Propulsion x1, Utility x1 309 | -9/Materials | Build established: Mutant 446 | -9/Materials | Lost 3 parts (2n1w) 634 | -9/Materials | Discovered new exit (range 16) 684 | -9/Materials | Build established: Scavenger-Mutant 1027 | -9/Materials | Discovered new exit (range 6) 1074 | -9/Materials | Entered Mines 1077 | -9/Mines | Received a Mining Laser from a helpful Derelict 1108 | -9/Mines | Deemed a non-threat by the Exiles lab entrance 1108 | -9/Mines | Discovered new exit (range 5) 1109 | -9/Mines | Entered Exiles 1121 | -9/Exiles | Met 8R-AWN 1126 | -9/Exiles | Met EX-HEX 1135 | -9/Exiles | Met EX-BIN 1139 | -9/Exiles | Aligned with FarCom system 1139 | -9/Exiles | Given EX-Vault access code 1147 | -9/Exiles | Opened EX-Vault 1150 | -9/Exiles | Found Flying Fortress v7 1159 | -9/Exiles | Warned to stay clear of 0b10 Research branches 1187 | -9/Exiles | Discovered new exit (range 14) 1191 | -9/Exiles | Left Exiles lab with Flying Fortress v7 1191 | -9/Exiles | Entered Mines 1205 | -8/Mines | Build established: Mutant 1222 | -8/Mines | Discovered new exit (range 9) 1225 | -8/Mines | Entered Materials 1225 | -8/Materials | Evolved 2 slots: Propulsion x1, Utility x1 1349 | -8/Materials | Identified exit to Garrison 1349 | -8/Materials | Entered Garrison 1354 | -8/Garrison | Triggered checkpoint 1391 | -8/Garrison | Installed Relay Interface Framework 1501 | -8/Garrison | Triggered checkpoint 1527 | -8/Garrison | Rescued a captive Derelict 1539 | -8/Garrison | Discovered new exit (range 12) 1548 | -8/Garrison | Entered Factory 1548 | -7/Factory | Evolved 2 slots: Utility x1, Weapon x1 1804 | -7/Factory | Garrison activated, responded to threat 1907 | -7/Factory | Repaired Imp. Deuterium Engine 2006 | -7/Factory | Identified exit to Garrison 2008 | -7/Factory | Entered Garrison 2068 | -7/Garrison | Triggered checkpoint 2081 | -7/Garrison | Rescued a captive Derelict 2083 | -7/Garrison | Rescued a captive Derelict 2113 | -7/Garrison | Garrison Relay disabled 2160 | -7/Garrison | Triggered checkpoint 2168 | -7/Garrison | Triggered checkpoint 2185 | -7/Garrison | Discovered new exit (range 9) 2188 | -7/Garrison | Triggered checkpoint 2192 | -7/Garrison | Learned Factory security intel 2196 | -7/Garrison | Triggered checkpoint 2197 | -7/Garrison | Garrison Relay disabled 2259 | -7/Garrison | Entered Factory 2259 | -6/Factory | Accompanied by 1 ally 2259 | -6/Factory | Evolved 2 slots: Utility x2 2484 | -6/Factory | Discovered new exit (range 11) 2507 | -6/Factory | Discovered new exit (range 8) 2528 | -6/Factory | Entered another Factory area 2528 | -5/Factory | Evolved 2 slots: Propulsion x1, Utility x1 2600 | -5/Factory | Discovered new exit (range 8) 2679 | -5/Factory | Entered Upper Caves 2727 | -5/Upper Caves | Learned Factory non-interactive machine intel 2731 | -5/Upper Caves | Learned Factory emergency access door positions 2842 | -5/Upper Caves | Discovered new exit (range 5) 2843 | -5/Upper Caves | Entered another Upper Caves area 2849 | -5/Upper Caves | Discovered new exit (range 7) 2851 | -5/Upper Caves | Entered Factory 2851 | -4/Factory | Evolved 2 slots: Utility x1, Weapon x1 2853 | -4/Factory | Loaded intel: 210 non-interactive machine locations 2864 | -4/Factory | Build established: Bothacker-Sprinter 3019 | -4/Factory | Repaired Imp. Flight Unit 3059 | -4/Factory | Repaired Imp. Utility Shielding 3144 | -4/Factory | Identified exit to Garrison 3144 | -4/Factory | Entered Garrison 3165 | -4/Garrison | Lost 9 parts (1p4n2u2w) 3182 | -4/Garrison | System corruption reached 10% 3256 | -4/Garrison | Triggered checkpoint 3282 | -4/Garrison | Garrison Relay disabled 3344 | -4/Garrison | Core integrity fell below 50% 3478 | -4/Garrison | Triggered checkpoint 3666 | -4/Garrison | Triggered checkpoint 3873 | -4/Garrison | Build established: Scavenger-Gunner 3878 | -4/Garrison | Triggered checkpoint 3912 | -4/Garrison | Discovered new exit (range 10) 4010 | -4/Garrison | Core integrity fell below 20% 4015 | -4/Garrison | Released all parts (10) 4029 | -4/Garrison | Entered Factory 4043 | -4/Factory | Lost 8 parts (1p2n4u1w) 4240 | -4/Factory | Spotted B-86 Titan 4260 | -4/Factory | Destroyed by Y-64 Sentinel with KE Penetrator Last Messages --------------- 04195_ W-44 Eye sends out distress signal. 04211_ K-01 Serf cleans the Subcomponent Replicator. 04217_ System corrupted: Energy discharge (-37). 04220_ Connecting with Recycling Unit... >>Recycle(Lgt. Antimatter Reactor) Accepting Lgt. Antimatter Reactor... >>Recycling(Process) Analyzing inventory... Recycling at 100% efficiency: Lgt. Particle Reactor (2) Adv. Remote Datajack (7) Lgt. Antimatter Reactor (35) 04220_ ALERT: Suspicious activity at Recycling Unit F003. Dispatching Investigation squad. 04222_ Penetrated by Slug. 04222_ Relay Coupler [Sentry] destroyed. 04230_ Acquired Lrn. Terrain Scanner. 04236_ System corrupted: Heat flow error (+204). 04258_ System corrupted: Matter fused (-7). 04260_ Penetrated by Slug. Map ----- +----------------------------------------------------+ | ??????????? #????????????????????????????????????? | | ??????????? ????????????????????????????????????? | | ??????????? ????????????????????????????????????? | | ??????????? #?#??? ?????????????????????????????? | | ???????? ?? ????????????????????????????????????? | | ?????#????? ????????????????????????????????????? | | ??????????? #???????????????????????????????????? | | ??????????? +???????????????????????????????????? | | ?????? ????# # ??????????????????????????????????? | | ?????? ???## #????? ????#????????????????????????? | | ?????? ????# #???????????????????????????????????? | | ?????? ????# #???????????????????????????????????? | | ?????? ????# #???????????????????????????????????? | | ?????# ????# #????###########????????????????????? | | ?????# ?####+###### #????????????????????? | | ????## ## # #????????????????????? | | ????# # # #????????????????????? | | ????# + # #????????????????????? | | ????# # ###+#######???#????????????????? | | ?????# ##+########### #??????????????????????????? | | ?????# # """ ]!!# #??????????????????????????? | | ?????# # "T" ]!!# #??????????????????????????? | | ?????# # ] # #??????????????????????????? | | ####?# # ! # #???????????????????????##?? | | # ## ########+## ############???????????? ?? | | Y @ +?????????? #?? | | # ##+########### ###############???????????? #?? | | ## ## ????????# #?????????????????????????# #?? | | ?# ?# """ ??????# #?????????????????????????# #?? | | ?#??# """ ""????# #????????????? ###+####### ### | | ????# """ """???# #????????????? + | | #???# ? ?# #???????????? # | | ????###########??# #???????????? + | | ?????????????????# #????"???????? # | | #############/# """""???????????? # | | + " """""?????????#######?# # | | ###### h""" ##########?##??? ! # # | | ??????????# """ #= #??# """ # # | | ??????????# """ # ] #??# """ + # | | ? ????????# # #??# """ # # | | ??????????# """ # """ #??? ! # # | | ??????????# Y" # """"" #??# """?# # | | ??????????# """ #? """"" ????#! """?# # | | ??????????# #??? ??????# ""??# # | | ????????#?####+##########+###?????# ??# # | | ???????????# #?????####?#???# + | | ???? ! #??????????????# # | | #??????????????# # | | ## #??????????????# # | | ?# ### """ """ #??????????????# # | +----------------------------------------------------+ Best States ------------- Heat Dissipation 62 Energy Generation 21 Energy Capacity 315 Matter Stores 300 Matter Capacity 300 Sight Range 18 Terrain Scan Range 20 Terrain Scan Density 210 Additional Mass Support 9 Armor Coverage 450 Utility Shielding 66 Evasion (%) 63 Targeting Accuracy 16 Recoil Reduction 5 Matter Filtering 30 Particle Charging 15 Salvage Targeting 1 Offensive Hacking 20 Defensive Hacking 12 Relay Coupler Types 3 Relay Coupler Value 89 Item Schematics ----------------- Particle Charger | -9/Materials | Scanalyzed Imp. Terrain Scan Processor | -7/Factory | Scanalyzed Adv. Weight Redist. System | -7/Factory | Scanalyzed Stasis Canceller | -6/Factory | Extracted Hvy. Mace | -6/Factory | Extracted Adv. Assault Cannon | -6/Factory | Extracted Thermal Shield | -6/Factory | Extracted Imp. System Shield | -6/Factory | Extracted Transmission Jammer | -6/Factory | Extracted Xenon Bombardment Thruster | -6/Factory | Extracted Gravity Neutralizer | -6/Factory | Extracted Adv. Sensor Array | -6/Factory | Extracted Hacking Suite | -6/Factory | Extracted Com. Matter Pod | -6/Factory | Extracted Imp. Medium Treads | -6/Factory | Extracted Robot Schematics ------------------ None Fabricated ------------ Nothing Alien Tech Used ----------------- None Achievements -------------- None Challenges ------------ None Game ------ Seed AssemblyHardlightShovel Manual? 0 Play Time 00:57:33 Cumulative 632.0 hours Start 2024.02.02 @ 15:49:07 End 2024.02.02 @ 16:45:08 Sessions 1 Manual Loads 0 Difficulty Rogue Special Mode None Game No. 604 Rogue 331 Adventurer 123 Explorer 150 Win Type - Total 25 Types 19/0/4/1/0/0/0/1/0 Lore% 80 Gallery% 91 Achievement% 76 Wizard Run 0 Options --------- ASCII 0 Keyboard 1 Movement Numpad Keybinds 0 Fullscreen 2 Font 18/X11Bold Map View 76x50 Zoom Use 0% Tactical HUD 1 Map Filters NONE Filters NONE Steam 1 RUN: ccf7b1b6-35ee-4a78-a69c-e332cfcda184